[Event "Titled Tuesday Blitz September 21 2021"]
[White "Nakamura, Hikaru"]
[Black "Kozak, Adam"]
[WhiteFideId "2016192"]
[BlackFideId "753246"]
[WhiteElo "3202"]
[BlackElo "2799"]
[Result "1-0"]
[Round "04"]
[TimeControl "180+1"]
[Date "2021.09.21"]
[WhiteClock "0:00:32"]
[BlackClock "0:00:00"]

1. Nf3 {[%clk 0:03:00]}  c5 {[%clk 0:02:54]} 2. e4 {[%clk 0:02:59]}  d6 {[%clk 0:02:54]} 3. d4 {[%clk 0:02:59]}  cxd4 {[%clk 0:02:54]} 4. Qxd4 {[%clk 0:03:00]}  Nf6 {[%clk 0:02:53]} 5. Nc3 {[%clk 0:02:58]}  Nc6 {[%clk 0:02:52]} 6. Bb5 {[%clk 0:02:58]}  Bd7 {[%clk 0:02:53]} 7. Bxc6 {[%clk 0:02:59]}  Bxc6 {[%clk 0:02:53]} 8. Bg5 {[%clk 0:03:00]}  e6 {[%clk 0:02:53]} 9. O-O-O {[%clk 0:02:59]}  Be7 {[%clk 0:02:53]} 10. Qd3 {[%clk 0:03:00]}  O-O {[%clk 0:02:51]} 11. Nd4 {[%clk 0:03:00]}  Qa5 {[%clk 0:02:48]} 12. f4 {[%clk 0:02:59]}  Rfc8 {[%clk 0:02:46]} 13. g4 {[%clk 0:02:51]}  Bd8 {[%clk 0:02:35]} 14. f5 {[%clk 0:02:34]}  Rab8 {[%clk 0:01:17]} 15. Bd2 {[%clk 0:02:21]}  e5 {[%clk 0:01:12]} 16. Nb3 {[%clk 0:02:15]}  Qa6 {[%clk 0:01:10]} 17. g5 {[%clk 0:02:09]}  Nxe4 {[%clk 0:01:04]} 18. Qxa6 {[%clk 0:02:06]}  bxa6 {[%clk 0:01:04]} 19. Rhg1 {[%clk 0:02:07]}  a5 {[%clk 0:00:55]} 20. Rde1 {[%clk 0:02:01]}  Nxd2 {[%clk 0:00:53]} 21. Nxd2 {[%clk 0:02:02]}  a4 {[%clk 0:00:54]} 22. Nc4 {[%clk 0:01:59]}  Bc7 {[%clk 0:00:51]} 23. Rd1 {[%clk 0:01:58]}  a3 {[%clk 0:00:44]} 24. b3 {[%clk 0:01:43]}  Bf3 {[%clk 0:00:37]} 25. Rd3 {[%clk 0:01:39]}  e4 {[%clk 0:00:37]} 26. Rd2 {[%clk 0:01:28]}  Kf8 {[%clk 0:00:09]} 27. Nd5 {[%clk 0:01:25]}  Bd8 {[%clk 0:00:06]} 28. h4 {[%clk 0:01:04]}  Rc6 {[%clk 0:00:05]} 29. Re1 {[%clk 0:00:53]}  Rxc4 {[%clk 0:00:04]} 30. bxc4 {[%clk 0:00:54]}  Ba5 {[%clk 0:00:05]} 31. c3 {[%clk 0:00:54]}  Rc8 {[%clk 0:00:03]} 32. Kc2 {[%clk 0:00:50]}  Rxc4 {[%clk 0:00:01]} 33. f6 {[%clk 0:00:49]}  gxf6 {[%clk 0:00:01]} 34. gxf6 {[%clk 0:00:50]}  Rc5 {[%clk 0:00:02]} 35. Re3 {[%clk 0:00:44]}  Rc8 {[%clk 0:00:01]} 36. Kb3 {[%clk 0:00:41]}  Bg4 {[%clk 0:00:00]} 37. Rxe4 {[%clk 0:00:32]} 1-0


[Site "https://www.chess.com"]

[Event "Titled Tuesday Blitz September 21 2021"]
[White "Nazaretyan, Tigran"]
[Black "Sorokin, Aleksey"]
[WhiteFideId "24162345"]
[BlackFideId "24176460"]
[WhiteElo "2212"]
[BlackElo "2476"]
[Result "0-1"]
[Round "04"]
[TimeControl "180+1"]
[Date "2021.09.21"]
[WhiteClock "0:01:13"]
[BlackClock "0:02:08"]

1. d4 {[%clk 0:03:00]}  Nf6 {[%clk 0:02:58]} 2. c4 {[%clk 0:03:00]}  g6 {[%clk 0:02:58]} 3. Nc3 {[%clk 0:03:00]}  d5 {[%clk 0:02:58]} 4. Nf3 {[%clk 0:02:59]}  Bg7 {[%clk 0:02:57]} 5. Bg5 {[%clk 0:02:59]}  Ne4 {[%clk 0:02:57]} 6. Bh4 {[%clk 0:03:00]}  Nxc3 {[%clk 0:02:54]} 7. bxc3 {[%clk 0:03:00]}  dxc4 {[%clk 0:02:55]} 8. Qa4+ {[%clk 0:03:01]}  c6 {[%clk 0:02:50]} 9. Qxc4 {[%clk 0:03:00]}  Be6 {[%clk 0:02:46]} 10. Qa4 {[%clk 0:02:55]}  b5 {[%clk 0:02:45]} 11. Qa3 {[%clk 0:02:52]}  a5 {[%clk 0:02:44]} 12. e3 {[%clk 0:02:43]}  Na6 {[%clk 0:02:42]} 13. Be2 {[%clk 0:02:38]}  Ra7 {[%clk 0:02:40]} 14. Ng5 {[%clk 0:02:31]}  Bd5 {[%clk 0:02:38]} 15. e4 {[%clk 0:02:29]}  h6 {[%clk 0:02:37]} 16. exd5 {[%clk 0:02:29]}  hxg5 {[%clk 0:02:37]} 17. Bg3 {[%clk 0:02:12]}  Qxd5 {[%clk 0:02:33]} 18. Bf3 {[%clk 0:02:12]}  Qe6+ {[%clk 0:02:29]} 19. Kf1 {[%clk 0:02:07]}  O-O {[%clk 0:02:28]} 20. Re1 {[%clk 0:02:06]}  Qf5 {[%clk 0:02:25]} 21. Bxc6 {[%clk 0:01:57]}  Qd3+ {[%clk 0:02:24]} 22. Kg1 {[%clk 0:01:57]}  b4 {[%clk 0:02:25]} 23. Qc1 {[%clk 0:01:49]}  bxc3 {[%clk 0:02:21]} 24. Rd1 {[%clk 0:01:43]}  Qc4 {[%clk 0:02:18]} 25. d5 {[%clk 0:01:40]}  Nb4 {[%clk 0:02:17]} 26. h4 {[%clk 0:01:37]}  c2 {[%clk 0:02:17]} 27. Rf1 {[%clk 0:01:33]}  Nxa2 {[%clk 0:02:15]} 28. Qxg5 {[%clk 0:01:27]}  Qxf1+ {[%clk 0:02:14]} 29. Kxf1 {[%clk 0:01:26]}  c1=Q+ {[%clk 0:02:15]} 30. Qxc1 {[%clk 0:01:26]}  Nxc1 {[%clk 0:02:16]} 31. h5 {[%clk 0:01:23]}  gxh5 {[%clk 0:02:14]} 32. Bf4 {[%clk 0:01:23]}  Nd3 {[%clk 0:02:12]} 33. Be3 {[%clk 0:01:23]}  Rc7 {[%clk 0:02:10]} 34. Rxh5 {[%clk 0:01:23]}  Nb4 {[%clk 0:02:09]} 35. Bb6 {[%clk 0:01:20]}  Rcc8 {[%clk 0:02:06]} 36. Bxa5 {[%clk 0:01:16]}  Nxc6 {[%clk 0:02:05]} 37. dxc6 {[%clk 0:01:16]}  Rxc6 {[%clk 0:02:06]} 38. g3 {[%clk 0:01:17]}  Re6 {[%clk 0:02:04]} 39. Kg2 {[%clk 0:01:16]}  Re5 {[%clk 0:02:04]} 40. Rxe5 {[%clk 0:01:15]}  Bxe5 {[%clk 0:02:05]} 41. Bb4 {[%clk 0:01:15]}  Bd6 {[%clk 0:02:05]} 42. Bc3 {[%clk 0:01:15]}  Rc8 {[%clk 0:02:05]} 43. Bd4 {[%clk 0:01:16]}  Kh7 {[%clk 0:02:05]} 44. f4 {[%clk 0:01:15]}  Kg6 {[%clk 0:02:06]} 45. Kf3 {[%clk 0:01:16]}  f5 {[%clk 0:02:06]} 46. g4 {[%clk 0:01:15]}  Ra8 {[%clk 0:02:05]} 47. gxf5+ {[%clk 0:01:15]}  Kxf5 {[%clk 0:02:05]} 48. Be3 {[%clk 0:01:15]}  Ra4 {[%clk 0:02:06]} 49. Kg3 {[%clk 0:01:14]}  e6 {[%clk 0:02:06]} 50. Kf3 {[%clk 0:01:15]}  Ra3 {[%clk 0:02:06]} 51. Ke2 {[%clk 0:01:15]}  Ke4 {[%clk 0:02:07]} 52. Bd2 {[%clk 0:01:15]}  Ra2 {[%clk 0:02:07]} 53. Kd1 {[%clk 0:01:15]}  Kd3 {[%clk 0:02:07]} 54. Bc1 {[%clk 0:01:15]}  Ra1 {[%clk 0:02:07]} 55. f5 {[%clk 0:01:14]}  Bb4 {[%clk 0:02:07]} 56. fxe6 {[%clk 0:01:13]}  Bd2 {[%clk 0:02:08]} 0-1


[Site "https://www.chess.com"]

[Event "Titled Tuesday Blitz September 21 2021"]
[White "Odegov, Artem"]
[Black "Korchmar, Vasiliy"]
[WhiteFideId "34183644"]
[BlackFideId "24131750"]
[WhiteElo "2257"]
[BlackElo "2370"]
[Result "1-0"]
[Round "04"]
[TimeControl "180+1"]
[Date "2021.09.21"]
[WhiteClock "0:00:07"]
[BlackClock "0:00:06"]

1. d4 {[%clk 0:03:00]}  Nf6 {[%clk 0:02:59]} 2. c4 {[%clk 0:02:59]}  c6 {[%clk 0:03:00]} 3. Nf3 {[%clk 0:02:58]}  d5 {[%clk 0:03:00]} 4. Nc3 {[%clk 0:02:57]}  a6 {[%clk 0:03:00]} 5. cxd5 {[%clk 0:02:57]}  cxd5 {[%clk 0:03:01]} 6. Bf4 {[%clk 0:02:58]}  Nc6 {[%clk 0:03:01]} 7. e3 {[%clk 0:02:58]}  Bg4 {[%clk 0:03:00]} 8. Be2 {[%clk 0:02:57]}  e6 {[%clk 0:03:01]} 9. O-O {[%clk 0:02:57]}  Be7 {[%clk 0:03:01]} 10. Rc1 {[%clk 0:02:54]}  O-O {[%clk 0:03:01]} 11. h3 {[%clk 0:02:43]}  Bh5 {[%clk 0:03:01]} 12. Ne5 {[%clk 0:02:39]}  Bxe2 {[%clk 0:02:58]} 13. Qxe2 {[%clk 0:02:39]}  Nxe5 {[%clk 0:02:57]} 14. Bxe5 {[%clk 0:02:40]}  Nd7 {[%clk 0:02:57]} 15. Bh2 {[%clk 0:02:39]}  Rc8 {[%clk 0:02:57]} 16. Rc2 {[%clk 0:02:38]}  Qa5 {[%clk 0:02:23]} 17. Rfc1 {[%clk 0:02:36]}  Rc6 {[%clk 0:02:24]} 18. a3 {[%clk 0:02:29]}  Rfc8 {[%clk 0:02:23]} 19. Qd3 {[%clk 0:02:11]}  h6 {[%clk 0:02:18]} 20. Bg3 {[%clk 0:02:09]}  Bf8 {[%clk 0:02:12]} 21. Kh2 {[%clk 0:02:05]}  b5 {[%clk 0:02:05]} 22. Nb1 {[%clk 0:01:50]}  Rxc2 {[%clk 0:00:59]} 23. Rxc2 {[%clk 0:01:51]}  Rxc2 {[%clk 0:00:59]} 24. Qxc2 {[%clk 0:01:52]}  b4 {[%clk 0:00:59]} 25. a4 {[%clk 0:01:39]}  Qb6 {[%clk 0:00:39]} 26. b3 {[%clk 0:01:11]}  Bd6 {[%clk 0:00:37]} 27. Qc8+ {[%clk 0:01:09]}  Nf8 {[%clk 0:00:37]} 28. Nd2 {[%clk 0:01:05]}  h5 {[%clk 0:00:37]} 29. Nf3 {[%clk 0:00:59]}  f6 {[%clk 0:00:37]} 30. h4 {[%clk 0:00:41]}  Kf7 {[%clk 0:00:36]} 31. Bxd6 {[%clk 0:00:35]}  Qxd6+ {[%clk 0:00:37]} 32. g3 {[%clk 0:00:35]}  Ng6 {[%clk 0:00:34]} 33. Qb7+ {[%clk 0:00:30]}  Ne7 {[%clk 0:00:32]} 34. a5 {[%clk 0:00:25]}  Kg6 {[%clk 0:00:27]} 35. Qb6 {[%clk 0:00:25]}  Qxb6 {[%clk 0:00:21]} 36. axb6 {[%clk 0:00:26]}  Nc6 {[%clk 0:00:21]} 37. Ne1 {[%clk 0:00:26]}  Kf7 {[%clk 0:00:13]} 38. Nd3 {[%clk 0:00:26]}  a5 {[%clk 0:00:11]} 39. Nc5 {[%clk 0:00:25]}  Ke7 {[%clk 0:00:11]} 40. b7 {[%clk 0:00:20]}  Kd6 {[%clk 0:00:09]} 41. g4 {[%clk 0:00:10]}  hxg4 {[%clk 0:00:08]} 42. Na6 {[%clk 0:00:06]}  a4 {[%clk 0:00:06]} 43. Nxb4 {[%clk 0:00:07]} 1-0


[Site "https://www.chess.com"]

[Event "Titled Tuesday Blitz September 21 2021"]
[White "Ovetchkin, Roman"]
[Black "Seemann, Jakub"]
[WhiteFideId "4119991"]
[BlackFideId "21874697"]
[WhiteElo "2432"]
[BlackElo "1849"]
[Result "1-0"]
[Round "04"]
[TimeControl "180+1"]
[Date "2021.09.21"]
[WhiteClock "0:00:06"]
[BlackClock "0:00:02"]

1. d4 {[%clk 0:02:46]}  Nf6 {[%clk 0:02:59]} 2. c4 {[%clk 0:02:45]}  e6 {[%clk 0:03:00]} 3. Nf3 {[%clk 0:02:44]}  d5 {[%clk 0:03:00]} 4. g3 {[%clk 0:02:44]}  dxc4 {[%clk 0:03:01]} 5. Bg2 {[%clk 0:02:44]}  c6 {[%clk 0:03:01]} 6. Ne5 {[%clk 0:02:42]}  Bb4+ {[%clk 0:03:00]} 7. Bd2 {[%clk 0:02:43]}  Be7 {[%clk 0:02:59]} 8. e3 {[%clk 0:02:37]}  b5 {[%clk 0:02:59]} 9. a4 {[%clk 0:02:36]}  b4 {[%clk 0:02:53]} 10. Nxc4 {[%clk 0:02:31]}  Ba6 {[%clk 0:02:51]} 11. Qb3 {[%clk 0:02:22]}  Nbd7 {[%clk 0:02:49]} 12. O-O {[%clk 0:02:19]}  c5 {[%clk 0:02:31]} 13. Rc1 {[%clk 0:01:59]}  cxd4 {[%clk 0:02:27]} 14. exd4 {[%clk 0:01:59]}  O-O {[%clk 0:02:22]} 15. Bxb4 {[%clk 0:01:36]}  Rb8 {[%clk 0:02:04]} 16. Bxe7 {[%clk 0:01:36]}  Qxe7 {[%clk 0:01:55]} 17. Qa3 {[%clk 0:01:34]}  Rb4 {[%clk 0:01:50]} 18. Nbd2 {[%clk 0:01:32]}  Rfb8 {[%clk 0:01:48]} 19. b3 {[%clk 0:01:26]}  Nd5 {[%clk 0:01:45]} 20. Bxd5 {[%clk 0:01:11]}  exd5 {[%clk 0:01:44]} 21. Na5 {[%clk 0:01:07]}  Qe2 {[%clk 0:01:15]} 22. Nc6 {[%clk 0:00:45]}  Qxd2 {[%clk 0:00:58]} 23. Nxb4 {[%clk 0:00:45]}  Rxb4 {[%clk 0:00:48]} 24. Rc7 {[%clk 0:00:19]}  Qxd4 {[%clk 0:00:37]} 25. Rxd7 {[%clk 0:00:15]}  h5 {[%clk 0:00:36]} 26. Re1 {[%clk 0:00:14]}  Qc3 {[%clk 0:00:23]} 27. Qc1 {[%clk 0:00:14]}  Rxb3 {[%clk 0:00:15]} 28. Rxa7 {[%clk 0:00:12]}  Bc4 {[%clk 0:00:11]} 29. Re8+ {[%clk 0:00:08]}  Kh7 {[%clk 0:00:11]} 30. Qxc3 {[%clk 0:00:08]}  Rxc3 {[%clk 0:00:11]} 31. Rxf7 {[%clk 0:00:07]}  Rc1+ {[%clk 0:00:05]} 32. Kg2 {[%clk 0:00:07]}  Bf1+ {[%clk 0:00:03]} 33. Kf3 {[%clk 0:00:07]}  Rc3+ {[%clk 0:00:04]} 34. Re3 {[%clk 0:00:05]}  Rc4 {[%clk 0:00:03]} 35. Rf4 {[%clk 0:00:05]}  Rc1 {[%clk 0:00:01]} 36. Ra3 {[%clk 0:00:05]}  Rb1 {[%clk 0:00:01]} 37. Rd4 {[%clk 0:00:05]}  Bc4 {[%clk 0:00:01]} 38. a5 {[%clk 0:00:05]}  g5 {[%clk 0:00:01]} 39. a6 {[%clk 0:00:05]}  g4+ {[%clk 0:00:01]} 40. Kf4 {[%clk 0:00:05]}  Rf1 {[%clk 0:00:01]} 41. a7 {[%clk 0:00:05]}  Rxf2+ {[%clk 0:00:01]} 42. Kg5 {[%clk 0:00:06]}  Rf8 {[%clk 0:00:01]} 43. a8=Q {[%clk 0:00:06]}  Rxa8 {[%clk 0:00:02]} 44. Rxa8 {[%clk 0:00:06]} 1-0


[Site "https://www.chess.com"]

[Event "Titled Tuesday Blitz September 21 2021"]
[White "Ozen, Bahadir"]
[Black "Visakh N R"]
[WhiteFideId "6337058"]
[BlackFideId "25012223"]
[WhiteElo "2503"]
[BlackElo "2454"]
[Result "0-1"]
[Round "04"]
[TimeControl "180+1"]
[Date "2021.09.21"]
[WhiteClock "0:00:02"]
[BlackClock "0:00:44"]

1. Nf3 {[%clk 0:03:00]}  d5 {[%clk 0:02:59]} 2. e3 {[%clk 0:03:00]}  Nd7 {[%clk 0:02:59]} 3. c4 {[%clk 0:02:59]}  e6 {[%clk 0:02:58]} 4. Nc3 {[%clk 0:02:54]}  Ngf6 {[%clk 0:02:57]} 5. b3 {[%clk 0:02:50]}  Be7 {[%clk 0:02:54]} 6. Bb2 {[%clk 0:02:49]}  O-O {[%clk 0:02:54]} 7. Rc1 {[%clk 0:02:32]}  a5 {[%clk 0:02:53]} 8. Be2 {[%clk 0:02:30]}  Nc5 {[%clk 0:02:52]} 9. d3 {[%clk 0:02:25]}  a4 {[%clk 0:02:49]} 10. O-O {[%clk 0:02:08]}  axb3 {[%clk 0:02:47]} 11. axb3 {[%clk 0:02:09]}  b6 {[%clk 0:02:37]} 12. b4 {[%clk 0:01:59]}  Na6 {[%clk 0:02:33]} 13. cxd5 {[%clk 0:01:59]}  Nxb4 {[%clk 0:02:25]} 14. dxe6 {[%clk 0:01:58]}  Bxe6 {[%clk 0:02:26]} 15. Nb5 {[%clk 0:01:38]}  c5 {[%clk 0:02:22]} 16. d4 {[%clk 0:01:38]}  Ra2 {[%clk 0:02:18]} 17. Bc3 {[%clk 0:01:32]}  Nbd5 {[%clk 0:02:16]} 18. dxc5 {[%clk 0:01:30]}  Bxc5 {[%clk 0:02:12]} 19. Be5 {[%clk 0:01:22]}  Nxe3 {[%clk 0:02:07]} 20. fxe3 {[%clk 0:01:20]}  Bxe3+ {[%clk 0:02:06]} 21. Kh1 {[%clk 0:01:20]}  Bxc1 {[%clk 0:02:04]} 22. Nc3 {[%clk 0:01:10]}  Qxd1 {[%clk 0:01:54]} 23. Rxd1 {[%clk 0:01:09]}  Ng4 {[%clk 0:01:52]} 24. Rxc1 {[%clk 0:01:05]}  Nxe5 {[%clk 0:01:42]} 25. Nxe5 {[%clk 0:01:04]}  Rb2 {[%clk 0:01:39]} 26. Nd3 {[%clk 0:00:56]}  Rd2 {[%clk 0:01:38]} 27. Nf4 {[%clk 0:00:46]}  Rc8 {[%clk 0:01:30]} 28. Rd1 {[%clk 0:00:29]}  Rxd1+ {[%clk 0:01:28]} 29. Nxd1 {[%clk 0:00:30]}  Bb3 {[%clk 0:01:26]} 30. Ne3 {[%clk 0:00:23]}  Re8 {[%clk 0:01:10]} 31. Ng4 {[%clk 0:00:15]}  h5 {[%clk 0:01:06]} 32. Nh6+ {[%clk 0:00:06]}  gxh6 {[%clk 0:01:05]} 33. Kg1 {[%clk 0:00:06]}  h4 {[%clk 0:01:02]} 34. Kf2 {[%clk 0:00:06]}  Re4 {[%clk 0:00:53]} 35. Kf3 {[%clk 0:00:06]}  Ra4 {[%clk 0:00:51]} 36. Ke3 {[%clk 0:00:04]}  Be6 {[%clk 0:00:47]} 37. g3 {[%clk 0:00:03]}  hxg3 {[%clk 0:00:46]} 38. hxg3 {[%clk 0:00:04]}  Ra3+ {[%clk 0:00:47]} 39. Kf2 {[%clk 0:00:02]}  Ra2 {[%clk 0:00:46]} 40. Ke3 {[%clk 0:00:03]}  Ra3+ {[%clk 0:00:46]} 41. Kf2 {[%clk 0:00:03]}  Kf8 {[%clk 0:00:45]} 42. Nd3 {[%clk 0:00:02]}  Bc4 {[%clk 0:00:44]} 0-1


[Site "https://www.chess.com"]

[Event "Titled Tuesday Blitz September 21 2021"]
[White "Peralta, Eduardo"]
[Black "Kamsky, Gata"]
[WhiteFideId "3700062"]
[BlackFideId "2000024"]
[WhiteElo "2732"]
[BlackElo "2932"]
[Result "0-1"]
[Round "04"]
[TimeControl "180+1"]
[Date "2021.09.21"]
[WhiteClock "0:00:59"]
[BlackClock "0:00:09"]

1. Nf3 {[%clk 0:03:00]}  Nf6 {[%clk 0:02:58]} 2. g3 {[%clk 0:03:01]}  g6 {[%clk 0:02:58]} 3. Bg2 {[%clk 0:03:02]}  Bg7 {[%clk 0:02:58]} 4. O-O {[%clk 0:03:01]}  O-O {[%clk 0:02:57]} 5. c4 {[%clk 0:02:59]}  c6 {[%clk 0:02:57]} 6. d4 {[%clk 0:02:57]}  d5 {[%clk 0:02:57]} 7. Qb3 {[%clk 0:02:57]}  Qb6 {[%clk 0:02:56]} 8. Nc3 {[%clk 0:02:51]}  Rd8 {[%clk 0:02:55]} 9. Qa3 {[%clk 0:02:49]}  Bf8 {[%clk 0:02:33]} 10. Qa4 {[%clk 0:02:43]}  Be6 {[%clk 0:02:24]} 11. c5 {[%clk 0:02:40]}  Qc7 {[%clk 0:02:21]} 12. Bf4 {[%clk 0:02:40]}  Qc8 {[%clk 0:02:20]} 13. b4 {[%clk 0:02:38]}  a6 {[%clk 0:02:18]} 14. Qb3 {[%clk 0:02:32]}  Bh3 {[%clk 0:02:08]} 15. a4 {[%clk 0:02:29]}  Bxg2 {[%clk 0:02:07]} 16. Kxg2 {[%clk 0:02:25]}  Nbd7 {[%clk 0:02:02]} 17. b5 {[%clk 0:02:24]}  Nh5 {[%clk 0:01:51]} 18. bxc6 {[%clk 0:02:18]}  Nxf4+ {[%clk 0:01:49]} 19. gxf4 {[%clk 0:02:18]}  bxc6 {[%clk 0:01:49]} 20. h3 {[%clk 0:02:10]}  Rb8 {[%clk 0:01:45]} 21. Qc2 {[%clk 0:02:10]}  Bg7 {[%clk 0:01:38]} 22. e3 {[%clk 0:02:10]}  a5 {[%clk 0:01:37]} 23. Rab1 {[%clk 0:02:06]}  Qc7 {[%clk 0:01:27]} 24. Qd3 {[%clk 0:02:04]}  f6 {[%clk 0:01:25]} 25. f5 {[%clk 0:02:00]}  Nf8 {[%clk 0:01:22]} 26. Rfc1 {[%clk 0:01:58]}  e6 {[%clk 0:01:21]} 27. fxe6 {[%clk 0:01:54]}  Nxe6 {[%clk 0:01:21]} 28. Qa6 {[%clk 0:01:53]}  f5 {[%clk 0:01:10]} 29. Rb6 {[%clk 0:01:51]}  Ra8 {[%clk 0:01:08]} 30. Qd3 {[%clk 0:01:47]}  f4 {[%clk 0:01:04]} 31. e4 {[%clk 0:01:45]}  dxe4 {[%clk 0:00:46]} 32. Nxe4 {[%clk 0:01:46]}  Nxd4 {[%clk 0:00:39]} 33. Qc4+ {[%clk 0:01:45]}  Kh8 {[%clk 0:00:36]} 34. Nd6 {[%clk 0:01:42]}  Rxd6 {[%clk 0:00:34]} 35. Ra6 {[%clk 0:01:42]}  Rdd8 {[%clk 0:00:31]} 36. Rxa8 {[%clk 0:01:38]}  Rxa8 {[%clk 0:00:31]} 37. Nxd4 {[%clk 0:01:37]}  Re8 {[%clk 0:00:22]} 38. Nf3 {[%clk 0:01:37]}  Bf6 {[%clk 0:00:21]} 39. Rd1 {[%clk 0:01:31]}  Kg7 {[%clk 0:00:20]} 40. Qa6 {[%clk 0:01:28]}  Re7 {[%clk 0:00:17]} 41. Qc4 {[%clk 0:01:28]}  g5 {[%clk 0:00:16]} 42. Rd6 {[%clk 0:01:25]}  Qc8 {[%clk 0:00:15]} 43. Nh2 {[%clk 0:01:19]}  h5 {[%clk 0:00:15]} 44. Nf3 {[%clk 0:01:16]}  Qf5 {[%clk 0:00:14]} 45. Nd4 {[%clk 0:01:13]}  Qe4+ {[%clk 0:00:13]} 46. f3 {[%clk 0:01:11]}  Qb1 {[%clk 0:00:12]} 47. Ne6+ {[%clk 0:01:09]}  Kg6 {[%clk 0:00:11]} 48. Qe4+ {[%clk 0:01:05]}  Qxe4 {[%clk 0:00:10]} 49. fxe4 {[%clk 0:01:03]}  Rb7 {[%clk 0:00:10]} 50. Nxf4+ {[%clk 0:00:59]}  gxf4 {[%clk 0:00:10]} 51. e5 {[%clk 0:01:00]}  Rb4 {[%clk 0:00:09]} 52. Rxf6+ {[%clk 0:00:59]}  Kg5 {[%clk 0:00:09]} 0-1


[Site "https://www.chess.com"]

[Event "Titled Tuesday Blitz September 21 2021"]
[White "Perez Ponsa, Federico"]
[Black "FGHSMN"]
[WhiteFideId "117927"]
[WhiteElo "2672"]
[BlackElo "2718"]
[Result "0-1"]
[Round "04"]
[TimeControl "180+1"]
[Date "2021.09.21"]
[WhiteClock "0:00:16"]
[BlackClock "0:00:34"]

1. e4 {[%clk 0:03:00]}  c5 {[%clk 0:02:57]} 2. Nf3 {[%clk 0:03:01]}  e6 {[%clk 0:02:57]} 3. g3 {[%clk 0:03:00]}  Nc6 {[%clk 0:02:55]} 4. Bg2 {[%clk 0:03:00]}  Nf6 {[%clk 0:02:54]} 5. Qe2 {[%clk 0:02:59]}  d6 {[%clk 0:02:54]} 6. O-O {[%clk 0:02:55]}  Be7 {[%clk 0:02:54]} 7. c3 {[%clk 0:02:55]}  O-O {[%clk 0:02:53]} 8. d4 {[%clk 0:02:55]}  cxd4 {[%clk 0:02:53]} 9. cxd4 {[%clk 0:02:55]}  Bd7 {[%clk 0:02:54]} 10. Nc3 {[%clk 0:02:53]}  Rc8 {[%clk 0:02:53]} 11. Rd1 {[%clk 0:02:51]}  Na5 {[%clk 0:02:47]} 12. e5 {[%clk 0:02:46]}  Nd5 {[%clk 0:02:43]} 13. Nxd5 {[%clk 0:02:36]}  exd5 {[%clk 0:02:44]} 14. Bf4 {[%clk 0:02:37]}  dxe5 {[%clk 0:02:41]} 15. dxe5 {[%clk 0:02:36]}  Be6 {[%clk 0:02:39]} 16. Nd4 {[%clk 0:02:33]}  Qb6 {[%clk 0:02:34]} 17. b3 {[%clk 0:02:28]}  Nc6 {[%clk 0:02:29]} 18. Be3 {[%clk 0:02:07]}  Bc5 {[%clk 0:02:27]} 19. Nxc6 {[%clk 0:01:43]}  bxc6 {[%clk 0:02:15]} 20. Bxc5 {[%clk 0:01:43]}  Qxc5 {[%clk 0:02:16]} 21. Rac1 {[%clk 0:01:43]}  Qb6 {[%clk 0:02:16]} 22. Qc2 {[%clk 0:01:42]}  Rfd8 {[%clk 0:02:04]} 23. Qc5 {[%clk 0:01:41]}  Qb8 {[%clk 0:02:03]} 24. f4 {[%clk 0:01:41]}  h5 {[%clk 0:01:54]} 25. Rd4 {[%clk 0:01:40]}  Rd7 {[%clk 0:01:49]} 26. b4 {[%clk 0:01:34]}  Rb7 {[%clk 0:01:47]} 27. a3 {[%clk 0:01:34]}  Rb5 {[%clk 0:01:40]} 28. Qe7 {[%clk 0:01:34]}  a5 {[%clk 0:01:35]} 29. Kh1 {[%clk 0:01:15]}  axb4 {[%clk 0:01:32]} 30. axb4 {[%clk 0:01:16]}  Rb7 {[%clk 0:01:24]} 31. Qg5 {[%clk 0:01:14]}  Rxb4 {[%clk 0:01:21]} 32. Rxb4 {[%clk 0:00:57]}  Qxb4 {[%clk 0:01:22]} 33. f5 {[%clk 0:00:58]}  Bd7 {[%clk 0:01:18]} 34. Qxh5 {[%clk 0:00:58]}  Qb2 {[%clk 0:01:12]} 35. Re1 {[%clk 0:00:57]}  Qc3 {[%clk 0:01:11]} 36. Qe2 {[%clk 0:00:28]}  Bxf5 {[%clk 0:01:10]} 37. Qf2 {[%clk 0:00:29]}  Re8 {[%clk 0:01:03]} 38. Re3 {[%clk 0:00:25]}  Qd4 {[%clk 0:01:00]} 39. Qe1 {[%clk 0:00:25]}  c5 {[%clk 0:00:50]} 40. h4 {[%clk 0:00:26]}  c4 {[%clk 0:00:49]} 41. Kh2 {[%clk 0:00:26]}  Bd3 {[%clk 0:00:44]} 42. e6 {[%clk 0:00:26]}  fxe6 {[%clk 0:00:35]} 43. Rxe6 {[%clk 0:00:27]}  Rxe6 {[%clk 0:00:36]} 44. Qxe6+ {[%clk 0:00:28]}  Kh7 {[%clk 0:00:36]} 45. Bxd5 {[%clk 0:00:22]}  Qf2+ {[%clk 0:00:36]} 46. Kh3 {[%clk 0:00:16]}  Bf5+ {[%clk 0:00:34]} 0-1


[Site "https://www.chess.com"]